[Event "*** Titled Tuesday Blitz"]
[Site "Chess.com"]
[Date "2020.05.19"]
[Round "1"]
[White "mrkvoz"]
[Black "Crazy_girl99"]
[Result "1/2-1/2"]
[WhiteElo "2816"]
[BlackElo "2434"]
[TimeControl "180+1"]
[EndTime "12:08:24 PDT"]
[Termination "Game drawn - insufficient material"]

1. e4 {[%clk 0:02:56.3]} 1... e5 {[%clk 0:02:59.4]} 2. Nf3 {[%clk 0:02:54.7]}
2... Nc6 {[%clk 0:02:57.5]} 3. d4 {[%clk 0:02:54.3]} 3... exd4 {[%clk
0:02:56.7]} 4. Nxd4 {[%clk 0:02:55.2]} 4... Nf6 {[%clk 0:02:56]} 5. Nxc6 {[%clk
0:02:55.5]} 5... bxc6 {[%clk 0:02:56.5]} 6. Bd3 {[%clk 0:02:56]} 6... d5 {[%clk
0:02:54.5]} 7. exd5 {[%clk 0:02:56.9]} 7... cxd5 {[%clk 0:02:54.1]} 8. O-O
{[%clk 0:02:57.4]} 8... Be7 {[%clk 0:02:51]} 9. c4 {[%clk 0:02:57.9]} 9... d4
{[%clk 0:02:37.5]} 10. Bg5 {[%clk 0:02:56.8]} 10... O-O {[%clk 0:02:37.8]} 11.
Nd2 {[%clk 0:02:56.7]} 11... Rb8 {[%clk 0:02:26]} 12. Rb1 {[%clk 0:02:55.8]}
12... Be6 {[%clk 0:02:21.2]} 13. Re1 {[%clk 0:02:52.6]} 13... Qd7 {[%clk
0:02:18.4]} 14. Bxf6 {[%clk 0:02:42.3]} 14... Bxf6 {[%clk 0:02:17.9]} 15. b4
{[%clk 0:02:43]} 15... g6 {[%clk 0:02:14.1]} 16. a4 {[%clk 0:02:33.5]} 16...
Rfe8 {[%clk 0:02:10.7]} 17. b5 {[%clk 0:02:27.6]} 17... Bf5 {[%clk 0:02:01.8]}
18. Qc2 {[%clk 0:02:23]} 18... Bxd3 {[%clk 0:01:56]} 19. Qxd3 {[%clk 0:02:23.9]}
19... c6 {[%clk 0:01:51.3]} 20. Qf3 {[%clk 0:02:06.2]} 20... Bg7 {[%clk
0:01:19.9]} 21. Qxc6 {[%clk 0:02:05.2]} 21... Qxc6 {[%clk 0:01:16.4]} 22. bxc6
{[%clk 0:02:06.1]} 22... Rxe1+ {[%clk 0:01:15.7]} 23. Rxe1 {[%clk 0:02:05.3]}
23... Rc8 {[%clk 0:01:16.2]} 24. Kf1 {[%clk 0:02:01.1]} 24... Rxc6 {[%clk
0:01:12.9]} 25. Re8+ {[%clk 0:02:00.6]} 25... Bf8 {[%clk 0:01:12.9]} 26. Rd8
{[%clk 0:02:00.2]} 26... Ra6 {[%clk 0:01:04.6]} 27. Rxd4 {[%clk 0:01:59.4]}
27... Rxa4 {[%clk 0:01:04.5]} 28. Rd7 {[%clk 0:01:52.5]} 28... Kg7 {[%clk
0:01:03.9]} 29. g3 {[%clk 0:01:49]} 29... Bc5 {[%clk 0:00:49.2]} 30. Ne4 {[%clk
0:01:47.9]} 30... Rxc4 {[%clk 0:00:44.5]} 31. Ng5 {[%clk 0:01:47.8]} 31... Kf6
{[%clk 0:00:36.5]} 32. h4 {[%clk 0:01:44.8]} 32... h6 {[%clk 0:00:26.5]} 33.
Rxf7+ {[%clk 0:01:43.8]} 33... Ke5 {[%clk 0:00:26.6]} 34. Nf3+ {[%clk
0:01:43.2]} 34... Ke6 {[%clk 0:00:24.3]} 35. Rc7 {[%clk 0:01:27.7]} 35... Kd6
{[%clk 0:00:18.8]} 36. Rg7 {[%clk 0:01:21.5]} 36... Rc2 {[%clk 0:00:18.5]} 37.
Rxg6+ {[%clk 0:01:21.7]} 37... Kd5 {[%clk 0:00:19]} 38. Ke1 {[%clk 0:01:16.8]}
38... Rxf2 {[%clk 0:00:13.8]} 39. Nd2 {[%clk 0:01:13.3]} 39... Rg2 {[%clk
0:00:13]} 40. Nf1 {[%clk 0:01:11.8]} 40... Bb4+ {[%clk 0:00:11.6]} 41. Kd1
{[%clk 0:01:11.3]} 41... Rf2 {[%clk 0:00:11.7]} 42. Ne3+ {[%clk 0:01:10.6]}
42... Ke4 {[%clk 0:00:11.7]} 43. Nc2 {[%clk 0:01:04.9]} 43... Rd2+ {[%clk
0:00:10.6]} 44. Kc1 {[%clk 0:01:04.7]} 44... Bc3 {[%clk 0:00:10.8]} 45. Rc6
{[%clk 0:00:54]} 45... Rd3 {[%clk 0:00:09.9]} 46. g4 {[%clk 0:00:51.2]} 46...
Rg3 {[%clk 0:00:08.9]} 47. Kb1 {[%clk 0:00:49.9]} 47... a5 {[%clk 0:00:07.9]}
48. Ka2 {[%clk 0:00:43.6]} 48... a4 {[%clk 0:00:07.7]} 49. Ka3 {[%clk 0:00:29]}
49... Kd3 {[%clk 0:00:07.4]} 50. Nb4+ {[%clk 0:00:23.7]} 50... Bxb4+ {[%clk
0:00:06.9]} 51. Kxb4 {[%clk 0:00:24.6]} 51... Rxg4+ {[%clk 0:00:07.2]} 52. Ka3
{[%clk 0:00:25.1]} 52... Rxh4 {[%clk 0:00:07.8]} 53. Re6 {[%clk 0:00:23.1]}
53... h5 {[%clk 0:00:06.4]} 54. Re5 {[%clk 0:00:17.2]} 54... Kd4 {[%clk
0:00:04.9]} 55. Rb5 {[%clk 0:00:17.3]} 55... Ke3 {[%clk 0:00:04.7]} 56. Rc5
{[%clk 0:00:17]} 56... Kf3 {[%clk 0:00:04.8]} 57. Rc3+ {[%clk 0:00:17.1]} 57...
Kg4 {[%clk 0:00:04.7]} 58. Rc4+ {[%clk 0:00:17.3]} 58... Kg3 {[%clk 0:00:04.8]}
59. Rc3+ {[%clk 0:00:17.5]} 59... Kf2 {[%clk 0:00:04.9]} 60. Rc2+ {[%clk
0:00:17.8]} 60... Ke1 {[%clk 0:00:03.5]} 61. Rc5 {[%clk 0:00:18.7]} 61... Kd2
{[%clk 0:00:04]} 62. Ka2 {[%clk 0:00:17.9]} 62... Rh3 {[%clk 0:00:03.7]} 63.
Rd5+ {[%clk 0:00:16.4]} 63... Ke2 {[%clk 0:00:03]} 64. Rc5 {[%clk 0:00:16.6]}
64... Rd3 {[%clk 0:00:01.7]} 65. Rxh5 {[%clk 0:00:16.3]} 65... a3 {[%clk
0:00:02.2]} 66. Rb5 {[%clk 0:00:16]} 66... Kd2 {[%clk 0:00:02.5]} 67. Rb3 {[%clk
0:00:15.6]} 67... Rxb3 {[%clk 0:00:02.1]} 68. Kxb3 {[%clk 0:00:16.4]} 68... Kc1
{[%clk 0:00:02.5]} 69. Kxa3 {[%clk 0:00:16.7]} 1/2-1/2

[Event "*** Titled Tuesday Blitz"]
[Site "Chess.com"]
[Date "2020.05.19"]
[Round "1"]
[White "Leonid_Starozhilov"]
[Black "Ural_bogatyr"]
[Result "0-1"]
[WhiteElo "2657"]
[BlackElo "2434"]
[TimeControl "180+1"]
[EndTime "12:08:24 PDT"]
[Termination "Ural_bogatyr won by resignation"]

1. e4 {[%clk 0:03:00.9]} 1... e5 {[%clk 0:02:59.7]} 2. Nf3 {[%clk 0:03:00.8]}
2... Nc6 {[%clk 0:02:59.5]} 3. Bb5 {[%clk 0:03:01.1]} 3... Bc5 {[%clk
0:02:59.5]} 4. d3 {[%clk 0:03:01.1]} 4... Nf6 {[%clk 0:02:59.7]} 5. O-O {[%clk
0:03:00.5]} 5... d6 {[%clk 0:02:59.8]} 6. Be3 {[%clk 0:02:59.4]} 6... Bb6 {[%clk
0:02:59.1]} 7. h3 {[%clk 0:02:54.9]} 7... O-O {[%clk 0:02:58.2]} 8. Nbd2 {[%clk
0:02:53.6]} 8... Ne7 {[%clk 0:02:57.1]} 9. Bc4 {[%clk 0:02:39.4]} 9... c6 {[%clk
0:02:55.3]} 10. Bb3 {[%clk 0:02:38.8]} 10... Ng6 {[%clk 0:02:54.2]} 11. Re1
{[%clk 0:02:36.9]} 11... Bc7 {[%clk 0:02:51.7]} 12. d4 {[%clk 0:02:34.9]} 12...
exd4 {[%clk 0:02:45.8]} 13. Bxd4 {[%clk 0:02:28.9]} 13... d5 {[%clk 0:02:38.7]}
14. exd5 {[%clk 0:02:03.1]} 14... Nxd5 {[%clk 0:02:36]} 15. Nf1 {[%clk
0:01:57.8]} 15... Ngf4 {[%clk 0:02:27.4]} 16. Ng3 {[%clk 0:01:45.8]} 16... Qd6
{[%clk 0:01:50.2]} 17. Be5 {[%clk 0:01:40.5]} 17... Qh6 {[%clk 0:01:49.3]} 18.
Bxd5 {[%clk 0:01:33]} 18... Bxe5 {[%clk 0:01:30.9]} 19. Nxe5 {[%clk 0:01:22]}
19... Nxd5 {[%clk 0:01:26.7]} 20. Qf3 {[%clk 0:01:11.2]} 20... Be6 {[%clk
0:01:24.7]} 21. Ng4 {[%clk 0:00:46.7]} 21... Qf4 {[%clk 0:01:18.8]} 22. Qxf4
{[%clk 0:00:13]} 22... Nxf4 {[%clk 0:01:19.7]} 23. Ne3 {[%clk 0:00:13.6]} 23...
g6 {[%clk 0:01:13.3]} 24. Rad1 {[%clk 0:00:13.1]} 24... Rad8 {[%clk 0:01:12.7]}
25. b3 {[%clk 0:00:12.4]} 25... Nd5 {[%clk 0:01:05.9]} 26. Nxd5 {[%clk
0:00:12.1]} 26... Rxd5 {[%clk 0:01:05.5]} 27. Rxd5 {[%clk 0:00:11]} 27... cxd5
{[%clk 0:01:05.6]} 28. Ne2 {[%clk 0:00:10.5]} 28... Re8 {[%clk 0:00:53.4]} 29.
Nd4 {[%clk 0:00:10.6]} 29... Kg7 {[%clk 0:00:53.3]} 30. f4 {[%clk 0:00:05.5]}
30... Kf6 {[%clk 0:00:51.9]} 31. Kf2 {[%clk 0:00:05.7]} 31... Rc8 {[%clk
0:00:50.6]} 32. Re3 {[%clk 0:00:03.8]} 32... h5 {[%clk 0:00:46.9]} 33. h4 {[%clk
0:00:03]} 33... Bg4 {[%clk 0:00:43.6]} 34. Ke1 {[%clk 0:00:02.8]} 34... a6
{[%clk 0:00:41.6]} 35. Kd2 {[%clk 0:00:03.3]} 35... Bf5 {[%clk 0:00:23.6]} 36.
g3 {[%clk 0:00:03.4]} 36... Be4 {[%clk 0:00:22.7]} 37. a3 {[%clk 0:00:03.5]}
37... Bg2 {[%clk 0:00:19.7]} 38. c3 {[%clk 0:00:03.5]} 38... Rc7 {[%clk
0:00:17.1]} 39. b4 {[%clk 0:00:03.4]} 39... Bf1 {[%clk 0:00:15.3]} 40. Nb3
{[%clk 0:00:03.5]} 40... Bc4 {[%clk 0:00:13.9]} 41. Nd4 {[%clk 0:00:03.1]} 41...
Rc8 {[%clk 0:00:12.8]} 42. a4 {[%clk 0:00:03.4]} 42... b5 {[%clk 0:00:12.2]} 43.
a5 {[%clk 0:00:03.4]} 43... Rc7 {[%clk 0:00:11.1]} 44. Re5 {[%clk 0:00:03.6]}
44... Ba2 {[%clk 0:00:09.6]} 45. Re3 {[%clk 0:00:03.3]} 45... Bc4 {[%clk
0:00:09.6]} 46. Nf3 {[%clk 0:00:03.7]} 46... Ba2 {[%clk 0:00:08.3]} 47. Rd3
{[%clk 0:00:04.1]} 47... Bc4 {[%clk 0:00:07.9]} 48. Rd4 {[%clk 0:00:04.5]} 48...
Re7 {[%clk 0:00:08.1]} 49. Ne5 {[%clk 0:00:04.9]} 49... Kf5 {[%clk 0:00:07.3]}
50. Ke3 {[%clk 0:00:05.3]} 50... f6 {[%clk 0:00:06.4]} 51. Kf2 {[%clk
0:00:05.4]} 51... fxe5 {[%clk 0:00:06.5]} 52. fxe5 {[%clk 0:00:06.3]} 52... Rxe5
{[%clk 0:00:06.6]} 53. Rf4+ {[%clk 0:00:06.7]} 53... Ke6 {[%clk 0:00:07.5]} 54.
Rf8 {[%clk 0:00:07.5]} 54... Rf5+ {[%clk 0:00:07.3]} 55. Rxf5 {[%clk 0:00:06.7]}
55... Kxf5 {[%clk 0:00:08.2]} 56. Ke3 {[%clk 0:00:07.4]} 56... Ke5 {[%clk
0:00:08.3]} 57. Kd2 {[%clk 0:00:07.5]} 57... d4 {[%clk 0:00:08.3]} 58. Kc2
{[%clk 0:00:08.4]} 58... d3+ {[%clk 0:00:07.5]} 59. Kd2 {[%clk 0:00:08.8]} 59...
Ke4 {[%clk 0:00:08.4]} 60. Kd1 {[%clk 0:00:09.2]} 60... Ke3 {[%clk 0:00:09.3]}
61. Ke1 {[%clk 0:00:10.1]} 61... d2+ {[%clk 0:00:09.3]} 0-1

[Event "*** Titled Tuesday Blitz"]
[Site "Chess.com"]
[Date "2020.05.19"]
[Round "1"]
[White "1Przemyslaw1"]
[Black "AnthonyWirig"]
[Result "0-1"]
[WhiteElo "2346"]
[BlackElo "2660"]
[TimeControl "180+1"]
[EndTime "12:08:26 PDT"]
[Termination "AnthonyWirig won on time"]

1. Nf3 {[%clk 0:02:52.2]} 1... c5 {[%clk 0:02:59.8]} 2. c4 {[%clk 0:02:52]} 2...
g6 {[%clk 0:02:59.6]} 3. e4 {[%clk 0:02:50.8]} 3... Nc6 {[%clk 0:02:58.2]} 4. d4
{[%clk 0:02:50.6]} 4... cxd4 {[%clk 0:02:56.5]} 5. Nxd4 {[%clk 0:02:50.4]} 5...
Nf6 {[%clk 0:02:57.2]} 6. Nc3 {[%clk 0:02:49.9]} 6... d6 {[%clk 0:02:56.9]} 7.
Be2 {[%clk 0:02:49.1]} 7... Nxd4 {[%clk 0:02:55.6]} 8. Qxd4 {[%clk 0:02:48.9]}
8... Bg7 {[%clk 0:02:56.2]} 9. Bg5 {[%clk 0:02:48.4]} 9... O-O {[%clk
0:02:56.3]} 10. Qd2 {[%clk 0:02:48]} 10... Be6 {[%clk 0:02:48.4]} 11. Rc1 {[%clk
0:02:27.5]} 11... Qa5 {[%clk 0:02:46.5]} 12. f3 {[%clk 0:02:16.2]} 12... Rfc8
{[%clk 0:02:45.7]} 13. b3 {[%clk 0:02:15.4]} 13... a6 {[%clk 0:02:40.9]} 14. Na4
{[%clk 0:02:15.1]} 14... Qxd2+ {[%clk 0:02:40]} 15. Kxd2 {[%clk 0:02:14.8]}
15... Nd7 {[%clk 0:02:32.2]} 16. g4 {[%clk 0:01:46.6]} 16... f6 {[%clk
0:02:31.2]} 17. Be3 {[%clk 0:01:45.4]} 17... f5 {[%clk 0:02:27.5]} 18. exf5
{[%clk 0:01:39.2]} 18... gxf5 {[%clk 0:02:27.2]} 19. h3 {[%clk 0:01:30.9]} 19...
Rf8 {[%clk 0:02:25.9]} 20. Rhe1 {[%clk 0:01:04.3]} 20... Rad8 {[%clk 0:01:55.3]}
21. Nc3 {[%clk 0:01:02.9]} 21... d5 {[%clk 0:01:42.5]} 22. cxd5 {[%clk
0:00:47.6]} 22... Nf6 {[%clk 0:01:40.4]} 23. Red1 {[%clk 0:00:25.4]} 23... Nxd5
{[%clk 0:01:33]} 24. Nxd5 {[%clk 0:00:25.1]} 24... Bxd5 {[%clk 0:01:26]} 25. Ke1
{[%clk 0:00:25.2]} 25... e6 {[%clk 0:01:10.6]} 26. g5 {[%clk 0:00:22.3]} 26...
f4 {[%clk 0:01:04.3]} 27. Bb6 {[%clk 0:00:21.3]} 27... Rd7 {[%clk 0:01:03.1]}
28. h4 {[%clk 0:00:20.9]} 28... h6 {[%clk 0:00:59.5]} 29. Kf2 {[%clk 0:00:17.8]}
29... hxg5 {[%clk 0:00:59]} 30. hxg5 {[%clk 0:00:17.9]} 30... Kf7 {[%clk
0:00:52.2]} 31. Rh1 {[%clk 0:00:16.7]} 31... Bc6 {[%clk 0:00:44.5]} 32. Rc2
{[%clk 0:00:14.6]} 32... Bd4+ {[%clk 0:00:30.9]} 33. Bxd4 {[%clk 0:00:12.9]}
33... Rxd4 {[%clk 0:00:31.8]} 34. Bxa6 {[%clk 0:00:11.5]} 34... Kg6 {[%clk
0:00:25]} 35. Be2 {[%clk 0:00:10]} 35... Kxg5 {[%clk 0:00:14.3]} 36. Rc5+ {[%clk
0:00:08.9]} 36... Kf6 {[%clk 0:00:12.9]} 37. Rh6+ {[%clk 0:00:06.9]} 37... Ke7
{[%clk 0:00:13]} 38. Rc2 {[%clk 0:00:05.1]} 38... Kd6 {[%clk 0:00:12.2]} 39. Bc4
{[%clk 0:00:04.8]} 39... Bd5 {[%clk 0:00:08.6]} 40. Bxd5 {[%clk 0:00:04.6]}
40... Rxd5 {[%clk 0:00:09.5]} 41. Re2 {[%clk 0:00:04.5]} 41... Re8 {[%clk
0:00:09.3]} 42. Rh7 {[%clk 0:00:03.9]} 42... Re7 {[%clk 0:00:08.1]} 43. Rh8
{[%clk 0:00:03.4]} 43... Kc6 {[%clk 0:00:06.5]} 44. Rc2+ {[%clk 0:00:03.2]}
44... Kb6 {[%clk 0:00:06.6]} 45. Rf8 {[%clk 0:00:03.7]} 45... e5 {[%clk
0:00:06.7]} 46. Rf5 {[%clk 0:00:03.8]} 46... Rd6 {[%clk 0:00:06.1]} 47. Re2
{[%clk 0:00:03.9]} 47... Rde6 {[%clk 0:00:06.6]} 48. Re4 {[%clk 0:00:03.9]}
48... Kc5 {[%clk 0:00:07]} 49. Ke2 {[%clk 0:00:04.3]} 49... Kd6 {[%clk 0:00:07]}
50. Kd3 {[%clk 0:00:04.5]} 50... Rc7 {[%clk 0:00:06.8]} 51. Rf8 {[%clk 0:00:04]}
51... Rc5 {[%clk 0:00:05.9]} 52. Rd8+ {[%clk 0:00:03.7]} 52... Ke7 {[%clk
0:00:06.4]} 53. Rb8 {[%clk 0:00:03.4]} 53... Rc7 {[%clk 0:00:06.1]} 54. Rc4
{[%clk 0:00:03.2]} 54... Rd7+ {[%clk 0:00:06.4]} 55. Ke4 {[%clk 0:00:03.1]}
55... Rd1 {[%clk 0:00:05.7]} 56. Kf5 {[%clk 0:00:02.8]} 56... Rd7 {[%clk
0:00:04.3]} 57. Re8+ {[%clk 0:00:02]} 57... Kxe8 {[%clk 0:00:04.7]} 58. Kxe6
{[%clk 0:00:02]} 58... Re7+ {[%clk 0:00:04.5]} 59. Kd6 {[%clk 0:00:01.7]} 59...
Kf7 {[%clk 0:00:04.8]} 0-1

[Event "*** Titled Tuesday Blitz"]
[Site "Chess.com"]
[Date "2020.05.19"]
[Round "1"]
[White "chessplayer9919"]
[Black "dosto07"]
[Result "1-0"]
[WhiteElo "2497"]
[BlackElo "2073"]
[TimeControl "180+1"]
[EndTime "12:08:26 PDT"]
[Termination "chessplayer9919 won on time"]

1. d4 {[%clk 0:03:00.9]} 1... d5 {[%clk 0:02:58.8]} 2. c4 {[%clk 0:03:00.8]}
2... dxc4 {[%clk 0:02:59.6]} 3. e3 {[%clk 0:03:00.6]} 3... Nf6 {[%clk
0:02:59.6]} 4. Bxc4 {[%clk 0:03:00.7]} 4... e6 {[%clk 0:03:00.2]} 5. Nf3 {[%clk
0:03:00.8]} 5... c5 {[%clk 0:03:00.2]} 6. O-O {[%clk 0:03:01]} 6... a6 {[%clk
0:02:59.4]} 7. a4 {[%clk 0:02:59.9]} 7... Nc6 {[%clk 0:02:58.6]} 8. Nc3 {[%clk
0:02:59]} 8... Be7 {[%clk 0:02:57.1]} 9. dxc5 {[%clk 0:02:57.2]} 9... Qc7 {[%clk
0:02:56.3]} 10. Qe2 {[%clk 0:02:51.8]} 10... O-O {[%clk 0:02:54.6]} 11. b3
{[%clk 0:02:39.6]} 11... Bxc5 {[%clk 0:02:50.7]} 12. Bb2 {[%clk 0:02:37.9]}
12... b6 {[%clk 0:02:49.3]} 13. Rac1 {[%clk 0:02:32.7]} 13... Bb7 {[%clk
0:02:48.9]} 14. Rfd1 {[%clk 0:02:28.5]} 14... Na5 {[%clk 0:02:34.6]} 15. Na2
{[%clk 0:02:14.6]} 15... Qe7 {[%clk 0:02:24.2]} 16. Bd4 {[%clk 0:01:52]} 16...
Bxd4 {[%clk 0:02:12.3]} 17. Nxd4 {[%clk 0:01:50.2]} 17... Nxc4 {[%clk 0:02:01]}
18. Rxc4 {[%clk 0:01:42.8]} 18... Rac8 {[%clk 0:01:54.5]} 19. Rdc1 {[%clk
0:01:40.3]} 19... Rxc4 {[%clk 0:01:52.3]} 20. Qxc4 {[%clk 0:01:41.2]} 20... Nd5
{[%clk 0:01:31.4]} 21. Nc3 {[%clk 0:01:36.6]} 21... Qg5 {[%clk 0:01:17.4]} 22.
Nf3 {[%clk 0:01:23.8]} 22... Qg6 {[%clk 0:01:06]} 23. Ne5 {[%clk 0:01:14.4]}
23... Qg5 {[%clk 0:00:51.4]} 24. Nf3 {[%clk 0:01:10.7]} 24... Qg6 {[%clk
0:00:45.8]} 25. Nxd5 {[%clk 0:00:59.9]} 25... Bxd5 {[%clk 0:00:43.8]} 26. Qf4
{[%clk 0:00:58.9]} 26... h6 {[%clk 0:00:39.2]} 27. b4 {[%clk 0:00:56.3]} 27...
Rd8 {[%clk 0:00:29]} 28. h3 {[%clk 0:00:54.6]} 28... Kh7 {[%clk 0:00:22.9]} 29.
a5 {[%clk 0:00:40.5]} 29... bxa5 {[%clk 0:00:20.7]} 30. bxa5 {[%clk 0:00:41.4]}
30... Qd3 {[%clk 0:00:20.4]} 31. Qxf7 {[%clk 0:00:35.1]} 31... Bxf3 {[%clk
0:00:19.1]} 32. Qxf3 {[%clk 0:00:31.5]} 32... Qd7 {[%clk 0:00:18.2]} 33. Qc6
{[%clk 0:00:30]} 33... Qxc6 {[%clk 0:00:12.7]} 34. Rxc6 {[%clk 0:00:30.9]} 34...
Rd1+ {[%clk 0:00:11.9]} 35. Kh2 {[%clk 0:00:30.8]} 35... e5 {[%clk 0:00:11.3]}
36. Rxa6 {[%clk 0:00:30.2]} 36... Rd2 {[%clk 0:00:12.2]} 37. Kg3 {[%clk
0:00:29.8]} 37... e4 {[%clk 0:00:12]} 38. Re6 {[%clk 0:00:29.1]} 38... Ra2
{[%clk 0:00:12.9]} 39. a6 {[%clk 0:00:29.2]} 39... Kg8 {[%clk 0:00:12.1]} 40.
Rxe4 {[%clk 0:00:27.7]} 40... Kf7 {[%clk 0:00:13]} 41. Rd4 {[%clk 0:00:25.1]}
41... Rxa6 {[%clk 0:00:13.9]} 42. f4 {[%clk 0:00:23.8]} 42... Ra2 {[%clk
0:00:14.8]} 43. Kf3 {[%clk 0:00:23.8]} 43... g6 {[%clk 0:00:15.3]} 44. Rd6
{[%clk 0:00:22.4]} 44... h5 {[%clk 0:00:16.2]} 45. g4 {[%clk 0:00:19.6]} 45...
h4 {[%clk 0:00:17.1]} 46. g5 {[%clk 0:00:20]} 46... Ra1 {[%clk 0:00:13.8]} 47.
Kg4 {[%clk 0:00:18.9]} 47... Ra3 {[%clk 0:00:13.7]} 48. e4 {[%clk 0:00:12.5]}
48... Re3 {[%clk 0:00:12]} 49. e5 {[%clk 0:00:12.8]} 49... Re4 {[%clk
0:00:12.1]} 50. Rf6+ {[%clk 0:00:12]} 50... Kg7 {[%clk 0:00:12.1]} 51. Kxh4
{[%clk 0:00:12.9]} 51... Rd4 {[%clk 0:00:10.7]} 52. Kg4 {[%clk 0:00:12.4]} 52...
Re4 {[%clk 0:00:10.6]} 53. h4 {[%clk 0:00:10.4]} 53... Rd4 {[%clk 0:00:10.3]}
54. h5 {[%clk 0:00:10.7]} 54... gxh5+ {[%clk 0:00:09.6]} 55. Kxh5 {[%clk
0:00:11.6]} 55... Re4 {[%clk 0:00:07.6]} 56. Kg4 {[%clk 0:00:11.6]} 56... Rd4
{[%clk 0:00:07]} 57. Kf5 {[%clk 0:00:12]} 57... Ra4 {[%clk 0:00:05.1]} 58. Rb6
{[%clk 0:00:11.9]} 58... Ra7 {[%clk 0:00:04.3]} 59. Rd6 {[%clk 0:00:11.7]} 59...
Rb7 {[%clk 0:00:03.6]} 60. Rd5 {[%clk 0:00:09.5]} 60... Rf7+ {[%clk 0:00:02.7]}
61. Kg4 {[%clk 0:00:08.2]} 61... Kg6 {[%clk 0:00:01]} 62. f5+ {[%clk 0:00:06.1]}
1-0

[Event "*** Titled Tuesday Blitz"]
[Site "Chess.com"]
[Date "2020.05.19"]
[Round "1"]
[White "pavelalexandru07"]
[Black "LizaSolovyova"]
[Result "0-1"]
[WhiteElo "2231"]
[BlackElo "2546"]
[TimeControl "180+1"]
[EndTime "12:08:29 PDT"]
[Termination "LizaSolovyova won by resignation"]

1. e4 {[%clk 0:03:00.9]} 1... e5 {[%clk 0:02:59.6]} 2. Nf3 {[%clk 0:03:00]} 2...
d6 {[%clk 0:02:58.2]} 3. d4 {[%clk 0:02:55.9]} 3... Qe7 {[%clk 0:02:58.2]} 4.
Nc3 {[%clk 0:02:50]} 4... c6 {[%clk 0:02:57.5]} 5. d5 {[%clk 0:02:30]} 5... f5
{[%clk 0:02:52.9]} 6. Be2 {[%clk 0:02:05]} 6... Nf6 {[%clk 0:02:44]} 7. exf5
{[%clk 0:02:03.1]} 7... Bxf5 {[%clk 0:02:43.1]} 8. O-O {[%clk 0:02:02.8]} 8...
Qc7 {[%clk 0:02:18.8]} 9. Re1 {[%clk 0:01:58.2]} 9... Be7 {[%clk 0:02:17.7]} 10.
Bf1 {[%clk 0:01:01.6]} 10... Nbd7 {[%clk 0:02:12]} 11. Nh4 {[%clk 0:01:00.8]}
11... Bg4 {[%clk 0:02:09.6]} 12. Be2 {[%clk 0:00:59.6]} 12... Bxe2 {[%clk
0:01:57.1]} 13. Rxe2 {[%clk 0:00:57.2]} 13... O-O {[%clk 0:01:49.7]} 14. Nf5
{[%clk 0:00:56.5]} 14... Rae8 {[%clk 0:01:45.3]} 15. Nxe7+ {[%clk 0:00:55]}
15... Rxe7 {[%clk 0:01:44.7]} 16. Be3 {[%clk 0:00:52]} 16... c5 {[%clk
0:01:33.3]} 17. f3 {[%clk 0:00:46.8]} 17... a6 {[%clk 0:01:28.7]} 18. a4 {[%clk
0:00:45.8]} 18... Ref7 {[%clk 0:01:09.2]} 19. Bf2 {[%clk 0:00:40.7]} 19... Nh5
{[%clk 0:01:08.1]} 20. Ne4 {[%clk 0:00:36.2]} 20... Nf4 {[%clk 0:01:07.8]} 21.
Re1 {[%clk 0:00:36.5]} 21... Rf5 {[%clk 0:01:01.7]} 22. Bg3 {[%clk 0:00:36.2]}
22... Qb6 {[%clk 0:00:56.4]} 23. Qc1 {[%clk 0:00:29.6]} 23... Ng6 {[%clk
0:00:44.3]} 24. c4 {[%clk 0:00:26.4]} 24... Nf6 {[%clk 0:00:39.1]} 25. Qc2
{[%clk 0:00:24]} 25... Nh5 {[%clk 0:00:29.3]} 26. a5 {[%clk 0:00:21.3]} 26...
Qd8 {[%clk 0:00:28.8]} 27. Bf2 {[%clk 0:00:20.6]} 27... Nhf4 {[%clk 0:00:29.1]}
28. Bg3 {[%clk 0:00:20.5]} 28... Rh5 {[%clk 0:00:29.2]} 29. Ra3 {[%clk
0:00:14.8]} 29... Qd7 {[%clk 0:00:29.3]} 30. Kh1 {[%clk 0:00:13.5]} 30... Nxg2
{[%clk 0:00:26.2]} 31. Kxg2 {[%clk 0:00:13.5]} 31... Qh3+ {[%clk 0:00:26]} 32.
Kg1 {[%clk 0:00:13.8]} 32... Nf4 {[%clk 0:00:25.1]} 33. Bxf4 {[%clk 0:00:14]}
33... Rxf4 {[%clk 0:00:24.4]} 34. Qg2 {[%clk 0:00:14.1]} 34... Qd7 {[%clk
0:00:17.5]} 35. Ng3 {[%clk 0:00:14.1]} 35... Rg5 {[%clk 0:00:17.1]} 36. Re4
{[%clk 0:00:14]} 36... h5 {[%clk 0:00:16.6]} 37. Rae3 {[%clk 0:00:12.8]} 37...
Qf7 {[%clk 0:00:15.3]} 38. Kh1 {[%clk 0:00:10.4]} 38... h4 {[%clk 0:00:15.5]}
39. Rxf4 {[%clk 0:00:09.2]} 39... exf4 {[%clk 0:00:15.7]} 40. Re4 {[%clk
0:00:09.2]} 40... hxg3 {[%clk 0:00:15.8]} 41. h3 {[%clk 0:00:08.4]} 41... Qf6
{[%clk 0:00:14]} 42. Kg1 {[%clk 0:00:08.5]} 42... Re5 {[%clk 0:00:12.5]} 43. Qe2
{[%clk 0:00:08.3]} 43... Rxe4 {[%clk 0:00:12.3]} 44. Qxe4 {[%clk 0:00:08.5]}
44... Qe5 {[%clk 0:00:07.7]} 45. Kg2 {[%clk 0:00:08.1]} 45... Qxe4 {[%clk
0:00:06.4]} 46. fxe4 {[%clk 0:00:09]} 46... Kf7 {[%clk 0:00:06.6]} 47. Kf3
{[%clk 0:00:09.4]} 47... g5 {[%clk 0:00:06.8]} 48. b3 {[%clk 0:00:07.2]} 48...
Kf6 {[%clk 0:00:07]} 49. Kg2 {[%clk 0:00:06.6]} 49... Ke5 {[%clk 0:00:07.3]} 50.
Kf3 {[%clk 0:00:06.9]} 50... Kd4 {[%clk 0:00:07.7]} 51. Kg2 {[%clk 0:00:06.1]}
51... Kxe4 {[%clk 0:00:08]} 52. b4 {[%clk 0:00:05.8]} 52... cxb4 {[%clk
0:00:07.1]} 53. c5 {[%clk 0:00:05.6]} 53... Kxd5 {[%clk 0:00:07.1]} 54. cxd6
{[%clk 0:00:06]} 54... Kxd6 {[%clk 0:00:07.3]} 55. h4 {[%clk 0:00:06.4]} 55...
gxh4 {[%clk 0:00:07.1]} 56. Kh3 {[%clk 0:00:06.3]} 56... b3 {[%clk 0:00:08]} 57.
Kxh4 {[%clk 0:00:05.6]} 57... b2 {[%clk 0:00:08.9]} 58. Kg4 {[%clk 0:00:05.6]}
58... b1=Q {[%clk 0:00:09.8]} 59. Kxf4 {[%clk 0:00:05.9]} 59... g2 {[%clk
0:00:10.4]} 60. Kf3 {[%clk 0:00:06]} 60... g1=Q {[%clk 0:00:10.4]} 0-1